fUST/lending_fUST_20240812
["ID","MTS","AMOUNT","RATE_DAILY","PERIOD"]
[334670267,1723451439383,-1313.27324268,0.0002,2]
[334670268,1723451439393,-2500.0,0.0002,2]
[334670269,1723451439403,-517.17022098,0.0002,2]
[334670270,1723451439412,-151.90208824,0.00020576,2]
[334670271,1723451439421,-1003.18673817,0.00020627,2]
[334670272,1723451439433,-2193.9112163,0.0002072,3]
[334670281,1723451440550,-1225.1617351,0.0002072,3]
[334670282,1723451440560,-1752.51006225,0.00020721,2]
[334670283,1723451440569,-751.50890145,0.00020735,2]
[334670284,1723451440579,-14735.4851538,0.00020801,2]
[334670285,1723451440588,-205.88,0.00020801,3]
[334670286,1723451440598,-14735.4851538,0.0002081,2]
[334670287,1723451440607,-31824.51325688,0.00020811,11]
[334670288,1723451440617,-162.94313494,0.00020811,11]
[334670289,1723451440627,-151.0,0.00020811,2]
[334670290,1723451440636,-151.0,0.00020811,2]
[334670291,1723451440646,-151.0,0.00020811,2]
[334670292,1723451440656,-151.0,0.00020811,2]
[334670293,1723451440665,-151.0,0.00020811,2]
[334670294,1723451440675,-548.494938,0.00020811,2]
[334670295,1723451440841,-548.494938,0.00020811,2]
[334670296,1723451440850,-408.679618,0.00020811,2]
[334670297,1723451440859,-408.679618,0.00020811,2]
[334670298,1723451440869,-151.0,0.00020811,2]
[334670299,1723451440878,-151.0,0.00020811,2]
[334670300,1723451440887,-151.0,0.00020811,2]
[334670301,1723451440896,-151.0,0.00020811,2]
[334670302,1723451440905,-231.641447,0.00020811,2]
[334670303,1723451440915,-231.641447,0.00020811,2]
[334670304,1723451440925,-72646.62896254,0.00020811,2]
[334670362,1723451446751,-17027.49853339,0.00020811,2]
[334670367,1723451545107,273.37336231,9.9e-05,2]
[334670369,1723451562480,273.37336231,9.9e-05,2]
[334670376,1723451911433,163.7738749,0.00014247,2]
[334670381,1723452169621,2030.53917402,0.00014247,2]
[334670384,1723452339130,-815.95147603,0.00017,3]
[334670385,1723452339151,-309.39667648,0.00017269,2]
[334670386,1723452339174,-153.0,0.00017563,2]
[334670387,1723452339197,-161.623309,0.00018077,2]
[334670388,1723452339221,-161.623309,0.00018266,2]
[334670389,1723452339245,-161.623309,0.00018454,2]
[334670390,1723452339267,-300.0,0.00018574,2]
[334670391,1723452339288,-2106.19466653,0.00018575,2]
[334670392,1723452347101,-424.28668132,0.00018575,2]
[334670395,1723452429119,-153.0,0.00017574,2]
[334670396,1723452429140,-153.0,0.00017574,2]
[334670397,1723452429162,-300.0,0.00018574,2]
[334670398,1723452429183,-22369.51865215,0.00018575,2]
[334670399,1723452429205,-161.623309,0.00018643,2]
[334670400,1723452429226,-161.623309,0.00018831,2]
[334670401,1723452429247,-161.98224,0.00018904,2]
[334670402,1723452429271,-240.81957697,0.00018979,2]
[334670403,1723452429292,-209.19959389,0.00018979,2]
[334670404,1723452429313,-1000.0,0.00019,19]
[334670405,1723452429334,-161.623309,0.00019019,2]
[334670406,1723452429355,-160.0616767,0.00019178,2]
[334670407,1723452429375,-176.489683,0.00019333,2]
[334670408,1723452429396,-191.21400034,0.00019477,2]
[334670409,1723452429416,-176.489683,0.00019655,2]
[334670410,1723452429436,-465.33307934,0.00019889,2]
[334670411,1723452429457,-176.489683,0.00019977,2]
[334670412,1723452429480,-1000.0,0.0002,20]
[334670413,1723452429501,-644.45100103,0.00020199,2]
[334670414,1723452429525,-657.57028883,0.000202,2]
[334670415,1723452429546,-154.74467129,0.0002028,2]
[334670416,1723452429568,-154.74467129,0.0002028,2]
[334670417,1723452429591,-3728.14738631,0.00020292,2]
[334670418,1723452429611,-176.489683,0.000203,2]
[334670419,1723452429633,-2730.44012249,0.00020414,2]
[334670420,1723452429655,-189.30641216,0.00020431,2]
[334670421,1723452438133,-594.14158459,0.00018909,2]
[334670422,1723452440968,163.346321,0.00014247,2]
[334670426,1723452545111,-309.41211775,0.00017269,2]
[334670427,1723452545133,-498.16030977,0.00017269,2]
[334670428,1723452545155,-153.0,0.0001755,2]
[334670429,1723452545178,-153.0,0.00017551,2]
[334670430,1723452545199,-153.0,0.00017561,2]
[334670431,1723452545221,-153.0,0.00017562,2]
[334670434,1723452590863,153.0,0.00017538,2]
[334670435,1723452623018,154.74467129,0.00017562,2]
[334670487,1723452632517,-163.772992,0.00018904,2]
[334670489,1723452632527,-741.504378,0.00019477,2]
[334670490,1723452632536,-66.3313125,0.00019547,2]
[334670646,1723452640670,-745.98645896,0.00019547,2]
[334670648,1723452640681,-807.33945305,0.00019547,2]
[334670650,1723452640691,-300.0,0.0001972,2]
[334670653,1723452640702,-4147.72444898,0.00019721,2]
[334670655,1723452640719,-13197.65810432,0.00019721,2]
[334670657,1723452640731,-151.90208824,0.00020576,2]
[334670659,1723452640742,-575.3740027,0.00020711,2]
[334670661,1723452640752,-2361.91538437,0.0002072,3]
[334670664,1723452640762,-1752.51006225,0.00020721,2]
[334670666,1723452640773,-205.88,0.00020801,3]
[334670667,1723452640782,-166.40776904,0.0002081,2]
[334670670,1723452640792,-13884.1102271,0.00020811,2]
[334670671,1723452640803,-4185.77752582,0.00020811,2]
[334670674,1723452640813,-104070.05146782,0.00020811,2]
[334670761,1723452643648,-463.26808289,0.00020811,2]
[334670785,1723452646958,-36062.23630482,0.00020811,2]
[334670786,1723452653560,153.0,0.00017526,2]
[334670790,1723452716509,296.07545052,0.00017526,2]
[334670791,1723452732694,273.37336231,9.9e-05,2]
[334670792,1723452735777,154.77557542,0.00017526,2]
[334670793,1723452748576,247.68542282,9.9e-05,2]
[334670794,1723452748598,25.68793949,9.9e-05,2]
[334670795,1723452765252,273.37336231,9.9e-05,2]
[334670796,1723452780294,273.37336231,9.9e-05,2]
[334670798,1723452823222,269.17868549,0.00014,2]
[334670801,1723452948056,161.570192,0.00014247,2]
[334670806,1723453171065,745.64786578,0.00014247,2]
[334670810,1723453217707,3601.91477368,0.00014247,2]
[334670813,1723453380615,163.24811,0.00014247,2]
[334670814,1723453452008,155.06089432,0.00015954,2]
[334670816,1723453532186,-340.71510523,0.00016038,2]
[334670817,1723453534402,1167.94419204,0.00015954,2]
[334670824,1723453627140,-493.23151943,0.00016159,2]
[334670825,1723453627163,-153.0,0.00017391,2]
[334670826,1723453627184,-300.0,0.00017972,2]
[334670827,1723453627207,-13804.18367352,0.00017973,2]
[334670829,1723453641120,-279.17020723,0.00017973,2]
[334670834,1723453748113,-8291.29302345,0.00017973,2]
[334670835,1723453748138,-300.0,0.00017999,2]
[334670836,1723453748163,-2000.0,0.00018,2]
[334670837,1723453748184,-1000.0,0.00018,2]
[334670838,1723453748205,-393.0,0.00018,5]
[334670841,1723453803912,264.20946971,0.00018701,2]
[334670885,1723453831800,-2478.20644723,0.00018701,2]
[334670979,1723453838030,-4256.30646898,0.00018701,2]
[334670981,1723453838041,-3869.88746595,0.00018825,2]
[334670983,1723453838050,-300.0,0.00018844,2]
[334670985,1723453838060,-1490.08000278,0.00018845,2]
[334670986,1723453838070,-1997.77647403,0.00018845,2]
[334670987,1723453838080,-166.240487,0.00018904,2]
[334670988,1723453838090,-422.01,0.0001891,2]
[334670990,1723453838101,-1731.85173861,0.00018921,2]
[334670993,1723453838111,-1479.99294051,0.00018945,2]
[334670994,1723453838121,-190.85060772,0.00018945,2]
[334670995,1723453838132,-183.12142007,0.00018969,2]
[334670996,1723453838142,-244.01806079,0.00018976,2]
[334670997,1723453838152,-535.37001987,0.00018979,2]
[334670998,1723453838163,-493.86054622,0.00018989,2]
[334670999,1723453838175,-154.0,0.00019,2]
[334671000,1723453838185,-1000.0,0.00019,2]
[334671001,1723453838195,-703.55987423,0.00019155,2]
[334671003,1723453838205,-842.70514999,0.00019155,4]
[334671004,1723453838215,-533.62513603,0.00019177,2]
[334671005,1723453838225,-163.856953,0.00019178,2]
[334671006,1723453838234,-157.95166393,0.00019451,2]
[334671007,1723453838244,-157.297373,0.0001949,2]
[334671008,1723453838255,-307.5532993,0.0002,2]
[334671009,1723453838265,-1000.0,0.0002,20]
[334671011,1723453838277,-151.90208824,0.00020251,2]
[334671012,1723453838287,-153.0,0.00020658,2]
[334671013,1723453838297,-2912.86683849,0.00020711,2]
[334671014,1723453838307,-2128.47183867,0.00020711,2]
[334671015,1723453838317,-473.58517665,0.00020719,2]
[334671016,1723453838327,-472.45970201,0.0002072,3]
[334671017,1723453838340,-3114.61741746,0.0002072,3]
[334671018,1723453838350,-1752.51006225,0.00020721,2]
[334671019,1723453838359,-420.0,0.00020728,2]
[334671020,1723453838370,-153.0,0.0002074,2]
[334671021,1723453838381,-153.0,0.0002074,2]
[334671022,1723453838390,-153.0,0.0002074,2]
[334671023,1723453838400,-205.88,0.00020791,3]
[334671024,1723453838409,-150.112233,0.000208,4]
[334671025,1723453838419,-1831.74,0.000208,2]
[334671026,1723453838429,-9542.54959207,0.0002081,2]
[334671027,1723453838441,-1789.11153156,0.0002081,2]
[334671028,1723453838453,-3120.18255727,0.0002081,2]
[334671029,1723453838462,-194.75178396,0.0002081,2]
[334671030,1723453838472,-264.61566306,0.0002081,2]
[334671031,1723453838481,-500.0,0.0002081,2]
[334671032,1723453838491,-500.0,0.0002081,2]
[334671033,1723453838501,-500.0,0.0002081,2]
[334671034,1723453838511,-380.00497094,0.0002081,2]
[334671035,1723453838521,-162.94313494,0.00020811,11]
[334671036,1723453838531,-151.0,0.00020811,2]
[334671037,1723453838540,-218.017488,0.00020811,2]
[334671038,1723453838550,-218.017488,0.00020811,2]
[334671039,1723453838559,-151.0,0.00020811,2]
[334671040,1723453838569,-151.0,0.00020811,2]
[334671041,1723453838578,-4898.46691383,0.00020811,2]
[334671042,1723453838589,-1377.35956123,0.00020811,2]
[334671043,1723453838601,-12015.13502604,0.00020811,2]
[334671061,1723453839887,-154.77557542,0.00018921,2]
[334671062,1723453839896,-141621.97279134,0.00020811,2]
[334671063,1723453839909,-42412.87724056,0.00020811,2]
[334671064,1723453839919,-13124.77527444,0.0002082,11]
[334671089,1723453842900,-18699.73798244,0.0002082,11]
[334671090,1723453842910,-48868.51988831,0.0002082,2]
[334671091,1723453842920,-151.0,0.0002082,2]
[334671092,1723453842930,-153.984891,0.0002082,2]
[334671093,1723453842939,-218.017488,0.0002082,2]
[334671094,1723453842949,-218.017488,0.0002082,2]
[334671095,1723453842959,-239.191447,0.0002082,2]
[334671096,1723453842968,-239.191447,0.0002082,2]
[334671097,1723453842977,-268.96074,0.0002082,2]
[334671098,1723453842986,-548.494938,0.0002082,2]
[334671099,1723453842997,-548.494938,0.0002082,2]
[334671100,1723453843007,-151.0,0.0002082,2]
[334671101,1723453843017,-269.358559,0.0002082,2]
[334671102,1723453843027,-151.0,0.0002082,2]
[334671103,1723453843037,-151.0,0.0002082,2]
[334671104,1723453843046,-151.0,0.0002082,2]
[334671105,1723453843056,-151.0,0.0002082,2]
[334671106,1723453843065,-176.196216,0.0002082,2]
[334671107,1723453843074,-176.196216,0.0002082,2]
[334671108,1723453843084,-151.0,0.0002082,2]
[334671109,1723453843094,-151.0,0.0002082,2]
[334671110,1723453843103,-151.0,0.0002082,2]
[334671111,1723453843113,-151.0,0.0002082,2]
[334671112,1723453843122,-151.0,0.0002082,2]
[334671113,1723453843280,-151.0,0.0002082,2]
[334671114,1723453843290,-596.95237227,0.00020821,2]
[334671115,1723453843300,-151.0,0.00020821,2]
[334671116,1723453843310,-151.0,0.00020821,2]
[334671117,1723453843320,-151.0,0.00020821,2]
[334671118,1723453843329,-263.124199,0.00020821,2]
[334671119,1723453843338,-500.0,0.00020821,3]
[334671120,1723453843347,-232.15569636,0.00020821,3]
[334671121,1723453843357,-500.0,0.00020821,3]
[334671122,1723453843366,-504.58441303,0.00020821,3]
[334671123,1723453843376,-153.237886,0.00020821,2]
[334671124,1723453843387,-505.56999351,0.00020821,3]
[334671125,1723453843396,-151.0,0.00020821,2]
[334671126,1723453843406,-151.0,0.00020821,2]
[334671127,1723453843415,-171.47208,0.00020821,2]
[334671128,1723453843425,-152.338471,0.00020821,2]
[334671129,1723453843435,-508.6931498,0.00020821,3]
[334671130,1723453843445,-511.56081948,0.00020821,3]
[334671131,1723453843455,-151.0,0.00020821,2]
[334671132,1723453843464,-277.324012,0.00020821,2]
[334671133,1723453843473,-500.0,0.00020821,3]
[334671134,1723453843483,-1141.94,0.00020821,3]
[334671135,1723453843491,-503.93560887,0.00020821,3]
[334671136,1723453843501,-500.0,0.00020821,3]
[334671137,1723453843510,-500.0,0.00020821,3]
[334671138,1723453843520,-500.0,0.00020821,3]
[334671139,1723453843529,-500.0,0.00020821,3]
[334671141,1723453843538,-500.0,0.00020821,3]
[334671142,1723453843547,-500.0,0.00020821,3]
[334671144,1723453843555,-514.0,0.00020821,3]
[334671146,1723453843565,-503.32259853,0.00020821,3]
[334671148,1723453843574,-500.0,0.00020821,3]
[334671150,1723453843583,-500.0,0.00020821,3]
[334671151,1723453843593,-507.28037901,0.00020821,3]
[334671153,1723453843602,-500.0,0.00020821,3]
[334671155,1723453843611,-500.0,0.00020821,3]
[334671157,1723453843621,-501.47659941,0.00020821,3]
[334671159,1723453843632,-500.0,0.00020821,3]
[334671160,1723453843642,-500.0,0.00020821,3]
[334671161,1723453843651,-500.0,0.00020821,3]
[334671162,1723453843660,-512.26,0.00020821,3]
[334671164,1723453843670,-151.0,0.00020821,2]
[334671166,1723453843679,-151.0,0.00020821,2]
[334671168,1723453843688,-151.0,0.00020821,2]
[334671170,1723453843697,-151.0,0.00020821,2]
[334671171,1723453843707,-202.436333,0.00020821,2]
[334671173,1723453843717,-1514.38,0.00020821,3]
[334671175,1723453843727,-284.24335444,0.00020821,3]
[334671177,1723453843736,-500.0,0.00020821,3]
[334671178,1723453843746,-500.0,0.00020821,3]
[334671179,1723453843755,-500.0,0.00020821,3]
[334671180,1723453843765,-500.0,0.00020821,3]
[334671181,1723453843775,-641.21995735,0.00020821,3]
[334671182,1723453843785,-397.10456181,0.00020821,3]
[334671183,1723453843794,-500.0,0.00020821,3]
[334671184,1723453843804,-500.0,0.00020821,2]
[334671185,1723453843814,-500.0,0.00020821,3]
[334671186,1723453843824,-438.32587841,0.00020821,3]
[334671187,1723453843834,-509.89475415,0.00020821,3]
[334671188,1723453843844,-505.3793045,0.00020821,3]
[334671189,1723453843854,-500.0,0.00020821,3]
[334671190,1723453843863,-500.0,0.00020821,3]
[334671191,1723453843872,-500.0,0.00020821,3]
[334671192,1723453843883,-500.0,0.00020821,3]
[334671193,1723453843893,-500.0,0.00020821,3]
[334671194,1723453843903,-500.0,0.00020821,3]
[334671195,1723453843913,-408.679618,0.00020821,2]
[334671196,1723453843922,-408.679618,0.00020821,2]
[334671197,1723453843931,-408.679618,0.00020821,2]
[334671198,1723453843940,-5.37530506,0.00020821,2]
[334671226,1723453846005,-72.90240215,0.0002082,2]
[334671227,1723453846051,-135.97465285,0.0002082,2]
[334671228,1723453846061,-403.30431294,0.00020821,2]
[334671229,1723453846070,-507.01067187,0.00020821,3]
[334671230,1723453846079,-408.679618,0.00020821,2]
[334671231,1723453846088,-408.679618,0.00020821,2]
[334671232,1723453846097,-408.679618,0.00020821,2]
[334671233,1723453846106,-408.679618,0.00020821,2]
[334671234,1723453846115,-408.679618,0.00020821,2]
[334671235,1723453846125,-500.0,0.00020821,3]
[334671236,1723453846135,-408.679618,0.00020821,2]
[334671237,1723453846144,-408.679618,0.00020821,2]
[334671238,1723453846154,-408.679618,0.00020821,2]
[334671239,1723453846164,-408.679618,0.00020821,2]
[334671240,1723453846173,-408.679618,0.00020821,2]
[334671241,1723453846187,-508.09490624,0.00020821,3]
[334671242,1723453846196,-142.02012682,0.00020821,2]
[334671246,1723453871539,159.40287,0.00014247,2]
[334671252,1723453906842,297.15415281,0.00014247,2]
[334671253,1723453928926,186.38527297,0.00017269,2]
[334671260,1723454087648,155.0,0.00016,2]
[334671261,1723454093127,155.0,0.00016,2]
[334671262,1723454097995,155.0,0.00016,2]
[334671263,1723454102647,155.0,0.00016,2]
[334671264,1723454107165,155.0,0.00016,2]
[334671265,1723454112154,155.0,0.00016,2]
[334671266,1723454116511,155.0,0.00016,2]
[334671267,1723454121249,155.0,0.00016,2]
[334671268,1723454125755,155.0,0.00016,2]
[334671269,1723454130259,230.11342846,0.00016,2]
[334671271,1723454310104,912.9067075,0.00016,2]
[334671273,1723454404799,157.95166393,0.00015954,2]
[334671274,1723454437902,164.094202,0.00014247,2]
[334671279,1723454731161,-157.928462,0.00018904,2]
[334671280,1723454731185,-300.0,0.00019176,2]
[334671281,1723454731207,-334.45666697,0.00019177,2]
[334671284,1723454843100,-455.02009089,0.00016347,2]
[334671285,1723454844113,-370.072531,0.00016347,2]
[334671286,1723454844136,-5642.1745505,0.00019398,2]
[334671287,1723454844158,-1611.38995866,0.00019451,2]
[334671288,1723454844179,-465.01665397,0.0001984,2]
[334671289,1723454844201,-300.0,0.00019999,2]
[334671290,1723454844222,-5394.7630467,0.0002,2]
[334671291,1723454844242,-151.90208824,0.00020251,2]
[334671292,1723454844263,-155.18968878,0.0002028,2]
[334671293,1723454844284,-153.0,0.000203,2]
[334671294,1723454844305,-1577.25905607,0.00020721,2]
[334671295,1723454844328,-2000.0,0.00020721,2]
[334671296,1723454844349,-24603.02117753,0.00020721,3]
[334671297,1723454844371,-207.3044688,0.000208,2]
[334671298,1723454844392,-541.8781034,0.000208,2]
[334671299,1723454844414,-585.8054169,0.000208,2]
[334671300,1723454844436,-229.6154198,0.000208,2]
[334671301,1723454844458,-153.0,0.000208,2]
[334671302,1723454844483,-153.0,0.000208,2]
[334671303,1723454844507,-659.60969318,0.000208,2]
[334671304,1723454844532,-61396.53382101,0.00020811,2]
[334671305,1723454905007,395.92530336,0.000123,2]
[334671308,1723454978953,155.33433152,0.00014909,2]
[334671309,1723454985772,108.87513819,0.00014909,2]
[334671310,1723454985797,45.90043723,0.00014909,2]
[334671311,1723455026002,4785.07669474,0.00014909,2]
[334671312,1723455026024,4025.0678696,0.00014909,2]
[334671313,1723455026053,244.0058615,0.00014909,2]
[334671314,1723455026075,4409.06585823,0.00014909,2]
[334671315,1723455026097,204.28176113,0.00014909,2]
[334671316,1723455026118,177.84587552,0.00014909,2]
[334671317,1723455026140,4853.07921132,0.00014909,2]
[334671318,1723455026161,254.455393,0.00014909,2]
[334671319,1723455026187,16914.34071147,0.00014909,2]
[334671362,1723455032064,-157.928462,0.00018904,2]
[334671364,1723455032074,-300.0,0.00019799,2]
[334671366,1723455032083,-7758.37474892,0.000198,2]
[334671369,1723455032095,-305.84891193,0.000198,2]
[334671392,1723455038285,-5279.43756461,0.000198,2]
[334671393,1723455038299,-500.0,0.00019989,2]
[334671394,1723455038309,-185.23096414,0.00019989,2]
[334671395,1723455038319,-316.00347966,0.00019989,2]
[334671396,1723455038330,-500.0,0.00019989,2]
[334671397,1723455038339,-136199.81338892,0.0001999,2]
[334671398,1723455038349,-8468.11901447,0.0002,2]
[334671399,1723455038358,-8147.0134374,0.00020811,2]
[334671400,1723455038367,-150.01,0.0002082,2]
[334671401,1723455038377,-407.86741407,0.0002082,2]
[334671402,1723455038387,-15912.25662844,0.00020821,11]
[334671403,1723455038397,-162.94313493,0.00020821,11]
[334671404,1723455038406,-218.017488,0.00020821,2]
[334671405,1723455038416,-218.017488,0.00020821,2]
[334671406,1723455038426,-218.017488,0.00020821,2]
[334671407,1723455038436,-218.017488,0.00020821,2]
[334671408,1723455038445,-218.017488,0.00020821,2]
[334671409,1723455038455,-218.017488,0.00020821,2]
[334671410,1723455038465,-218.017488,0.00020821,2]
[334671411,1723455038474,-218.017488,0.00020821,2]
[334671412,1723455038484,-218.017488,0.00020821,2]
[334671413,1723455038494,-218.017488,0.00020821,2]
[334671414,1723455038504,-218.017488,0.00020821,2]
[334671415,1723455038516,-218.017488,0.00020821,2]
[334671416,1723455038525,-218.017488,0.00020821,2]
[334671417,1723455038535,-218.017488,0.00020821,2]
[334671418,1723455038551,-218.017488,0.00020821,2]
[334671419,1723455038560,-218.017492,0.00020821,2]
[334671420,1723455038570,-151.0,0.00020821,2]
[334671421,1723455038582,-151.0,0.00020821,2]
[334671422,1723455038593,-151.0,0.00020821,2]
[334671423,1723455038603,-151.0,0.00020821,2]
[334671424,1723455038612,-151.0,0.00020821,2]
[334671425,1723455038622,-151.0,0.00020821,2]
[334671426,1723455038632,-222.965825,0.00020821,2]
[334671427,1723455038642,-151.0,0.00020821,2]
[334671428,1723455038652,-151.0,0.00020821,2]
[334671429,1723455038663,-151.0,0.00020821,2]
[334671430,1723455038673,-151.0,0.00020821,2]
[334671431,1723455038682,-151.0,0.00020821,2]
[334671432,1723455038691,-178.685893,0.00020821,2]
[334671433,1723455038701,-505.30612931,0.00020821,3]
[334671434,1723455038712,-502.75192161,0.00020821,3]
[334671435,1723455038721,-508.06225119,0.00020821,3]
[334671436,1723455038730,-503.62067233,0.00020821,3]
[334671437,1723455038740,-504.79375282,0.00020821,3]
[334671438,1723455038751,-523.52312426,0.00020821,3]
[334671439,1723455038760,-501.28945103,0.00020821,3]
[334671440,1723455038770,-500.0,0.00020821,3]
[334671441,1723455038780,-502.51274674,0.00020821,3]
[334671442,1723455038793,-500.0,0.00020821,3]
[334671443,1723455038803,-500.0,0.00020821,3]
[334671444,1723455038812,-500.0,0.00020821,3]
[334671445,1723455038821,-500.0,0.00020821,3]
[334671446,1723455038830,-502.63425485,0.00020821,3]
[334671447,1723455038840,-500.0,0.00020821,3]
[334671448,1723455038849,-503.51316047,0.00020821,3]
[334671449,1723455038858,-502.37776736,0.00020821,3]
[334671450,1723455038868,-504.15188144,0.00020821,3]
[334671451,1723455038877,-488.01606596,0.00020821,3]
[334671452,1723455038886,-507.3011054,0.00020821,3]
[334671453,1723455038895,-500.0,0.00020821,3]
[334671454,1723455038906,-500.0,0.00020821,3]
[334671455,1723455038915,-500.0,0.00020821,3]
[334671456,1723455038924,-599.29,0.00020821,3]
[334671457,1723455038933,-500.0,0.00020821,3]
[334671458,1723455038943,-579.22,0.00020821,3]
[334671459,1723455038952,-504.23767779,0.00020821,3]
[334671460,1723455038961,-500.0,0.00020821,3]
[334671461,1723455038971,-500.0,0.00020821,3]
[334671462,1723455038981,-500.0,0.00020821,3]
[334671463,1723455038990,-504.23007357,0.00020821,3]
[334671464,1723455038999,-582.79,0.00020821,3]
[334671465,1723455039009,-502.6000104,0.00020821,3]
[334671466,1723455039018,-500.0,0.00020821,3]
[334671467,1723455039028,-599.39,0.00020821,3]
[334671468,1723455039037,-505.30181054,0.00020821,3]
[334671469,1723455039050,-509.62993175,0.00020821,3]
[334671470,1723455039059,-500.0,0.00020821,3]
[334671471,1723455039069,-500.0,0.00020821,3]
[334671472,1723455039079,-150.7495631,0.00020821,3]
[334671473,1723455039088,-507.14538628,0.00020821,3]
[334671474,1723455039097,-502.97276873,0.00020821,3]
[334671475,1723455039107,-151.0,0.00020821,2]
[334671476,1723455039116,-151.0,0.00020821,2]
[334671477,1723455039126,-151.0,0.00020821,2]
[334671478,1723455039135,-151.0,0.00020821,2]
[334671479,1723455039144,-151.0,0.00020821,2]
[334671480,1723455039153,-151.0,0.00020821,2]
[334671481,1723455039162,-151.0,0.00020821,2]
[334671482,1723455039171,-151.0,0.00020821,2]
[334671483,1723455039182,-500.0,0.00020821,3]
[334671484,1723455039192,-151.0,0.00020821,2]
[334671485,1723455039202,-500.0,0.00020821,3]
[334671486,1723455039212,-151.0,0.00020821,2]
[334671487,1723455039221,-151.0,0.00020821,2]
[334671488,1723455039231,-151.0,0.00020821,2]
[334671489,1723455039240,-151.0,0.00020821,2]
[334671490,1723455039250,-151.0,0.00020821,2]
[334671491,1723455039260,-151.0,0.00020821,2]
[334671492,1723455039269,-206.392458,0.00020821,2]
[334671493,1723455039279,-500.0,0.00020821,3]
[334671494,1723455039288,-507.61668223,0.00020821,3]
[334671495,1723455039303,-151.0,0.00020821,2]
[334671496,1723455039317,-503.20651705,0.00020821,3]
[334671497,1723455039327,-339.32579502,0.00020821,3]
[334671512,1723455042370,-333.14420498,0.00020821,3]
[334671513,1723455042380,-384.23911903,0.00020821,3]
[334671515,1723455042390,-500.0,0.00020821,3]
[334671517,1723455042400,-502.21590744,0.00020821,3]
[334671520,1723455042409,-503.24843815,0.00020821,3]
[334671523,1723455042418,-508.75605454,0.00020821,3]
[334671526,1723455042427,-564.14,0.00020821,3]
[334671527,1723455042436,-500.0,0.00020821,3]
[334671529,1723455042446,-511.2077985,0.00020821,3]
[334671530,1723455042455,-500.0,0.00020821,3]
[334671531,1723455042465,-545.7691022,0.00020821,3]
[334671533,1723455042474,-500.0,0.00020821,3]
[334671534,1723455042483,-500.73988775,0.00020821,3]
[334671535,1723455042492,-522.5658529,0.00020821,3]
[334671536,1723455042502,-500.0,0.00020821,3]
[334671537,1723455042511,-506.04159792,0.00020821,3]
[334671538,1723455042521,-200.0,0.00020821,3]
[334671539,1723455042531,-152.30821725,0.00020821,3]
[334671540,1723455042542,-500.0,0.00020821,3]
[334671541,1723455042552,-872.71,0.00020821,3]
[334671542,1723455042561,-500.0,0.00020821,3]
[334671543,1723455042571,-500.0,0.00020821,3]
[334671544,1723455042581,-502.78650335,0.00020821,3]
[334671545,1723455042594,-500.0,0.00020821,3]
[334671547,1723455042603,-500.0,0.00020821,3]
[334671548,1723455042612,-500.0,0.00020821,3]
[334671550,1723455042622,-504.4163901,0.00020821,3]
[334671552,1723455042631,-166.54872756,0.00020821,3]
[334671554,1723455042641,-879.27,0.00020821,3]
[334671556,1723455042650,-500.0,0.00020821,3]
[334671559,1723455042660,-500.0,0.00020821,3]
[334671562,1723455042669,-276.09204124,0.00020821,3]
[334671564,1723455042678,-503.34318761,0.00020821,3]
[334671567,1723455042687,-506.28635247,0.00020821,3]
[334671568,1723455042696,-500.0,0.00020821,3]
[334671569,1723455042705,-500.0,0.00020821,3]
[334671570,1723455042714,-500.0,0.00020821,3]
[334671571,1723455042724,-500.0,0.00020821,3]